[Event "Early-Titled-Tuesday-Blitz-September-05-2023"]
[Site "Chess.com"]
[Date "2023.09.05"]
[Round "3"]
[White "Durarbayli"]
[Black "MFatigue"]
[Result "1-0"]
[WhiteElo "2887"]
[BlackElo "2505"]
[TimeControl "180+1"]
[EndTime "8:26:58 PDT"]
[Termination "Durarbayli won on time"]

1. e4 {[%clk 0:03:00.9]} 1... e6 {[%clk 0:03:00.3]} 2. d4 {[%clk 0:02:53.5]}
2... d5 {[%clk 0:03:00.5]} 3. e5 {[%clk 0:02:52.5]} 3... c5 {[%clk 0:02:52.7]}
4. c3 {[%clk 0:02:52.6]} 4... Nc6 {[%clk 0:02:53.6]} 5. Nf3 {[%clk 0:02:52.8]}
5... Bd7 {[%clk 0:02:53.4]} 6. Be2 {[%clk 0:02:52.8]} 6... Nge7 {[%clk
0:02:52.9]} 7. Na3 {[%clk 0:02:50.1]} 7... Nf5 {[%clk 0:02:51.3]} 8. Nc2 {[%clk
0:02:50.1]} 8... cxd4 {[%clk 0:02:52]} 9. cxd4 {[%clk 0:02:51]} 9... Qb6 {[%clk
0:02:52.4]} 10. O-O {[%clk 0:02:51]} 10... Na5 {[%clk 0:02:53]} 11. g4 {[%clk
0:01:47.3]} 11... Ne7 {[%clk 0:02:45.3]} 12. b3 {[%clk 0:01:44.5]} 12... Bb5
{[%clk 0:02:42.8]} 13. Ba3 {[%clk 0:01:44.6]} 13... Ng6 {[%clk 0:02:23.1]} 14.
Bc5 {[%clk 0:01:42.6]} 14... Bxe2 {[%clk 0:01:58]} 15. Qxe2 {[%clk 0:01:42.8]}
15... Qa6 {[%clk 0:01:44.7]} 16. Qxa6 {[%clk 0:01:33.6]} 16... bxa6 {[%clk
0:01:45.6]} 17. Nb4 {[%clk 0:01:30]} 17... Bxc5 {[%clk 0:01:28.7]} 18. dxc5
{[%clk 0:01:30.9]} 18... Rc8 {[%clk 0:01:29.3]} 19. Rac1 {[%clk 0:01:30.5]}
19... Nc6 {[%clk 0:01:27.8]} 20. Nxc6 {[%clk 0:01:28.5]} 20... Rxc6 {[%clk
0:01:28.7]} 21. Nd4 {[%clk 0:01:29]} 21... Rc7 {[%clk 0:01:28]} 22. f4 {[%clk
0:01:29.5]} 22... h5 {[%clk 0:01:20.3]} 23. f5 {[%clk 0:01:11.9]} 23... Nxe5
{[%clk 0:01:18.7]} 24. fxe6 {[%clk 0:01:09.6]} 24... f6 {[%clk 0:00:58.6]} 25.
g5 {[%clk 0:01:03]} 25... Ke7 {[%clk 0:00:43.4]} 26. Rce1 {[%clk 0:00:46.3]}
26... Rxc5 {[%clk 0:00:26.8]} 27. Nf5+ {[%clk 0:00:46]} 27... Kxe6 {[%clk
0:00:26.2]} 28. Nxg7+ {[%clk 0:00:46.3]} 28... Kf7 {[%clk 0:00:23.9]} 29. gxf6
{[%clk 0:00:46.4]} 29... Ng6 {[%clk 0:00:17.7]} 30. Ne6 {[%clk 0:00:45.5]} 30...
Rc2 {[%clk 0:00:12.4]} 31. Ng5+ {[%clk 0:00:46]} 31... Kf8 {[%clk 0:00:12]} 32.
f7 {[%clk 0:00:43.1]} 32... Nh4 {[%clk 0:00:01.4]} 33. Re8+ {[%clk 0:00:38.1]}
33... Kg7 {[%clk 0:00:01.7]} 34. Ne6+ {[%clk 0:00:39]} 1-0

[Event "Early-Titled-Tuesday-Blitz-September-05-2023"]
[Site "Chess.com"]
[Date "2023.09.05"]
[Round "3"]
[White "Arifarsky"]
[Black "MatthewG-p4p"]
[Result "0-1"]
[WhiteElo "2694"]
[BlackElo "2877"]
[TimeControl "180+1"]
[EndTime "8:27:02 PDT"]
[Termination "MatthewG-p4p won by resignation"]

1. Nf3 {[%clk 0:03:00.4]} 1... c5 {[%clk 0:02:58.3]} 2. e4 {[%clk 0:02:58.2]}
2... g6 {[%clk 0:02:58.6]} 3. Nc3 {[%clk 0:02:55.5]} 3... Bg7 {[%clk 0:02:58.9]}
4. Bc4 {[%clk 0:02:55.4]} 4... Nc6 {[%clk 0:02:59.2]} 5. a3 {[%clk 0:02:54.4]}
5... e6 {[%clk 0:02:59.5]} 6. Ba2 {[%clk 0:02:53.9]} 6... Nge7 {[%clk
0:02:59.7]} 7. O-O {[%clk 0:02:53.6]} 7... O-O {[%clk 0:02:59.2]} 8. d3 {[%clk
0:02:43.8]} 8... h6 {[%clk 0:02:57.8]} 9. Be3 {[%clk 0:02:39.6]} 9... Nd4 {[%clk
0:02:50.3]} 10. Bxd4 {[%clk 0:02:36.7]} 10... cxd4 {[%clk 0:02:51.2]} 11. Ne2
{[%clk 0:02:37.6]} 11... e5 {[%clk 0:02:34.7]} 12. c3 {[%clk 0:02:21.2]} 12...
dxc3 {[%clk 0:02:31]} 13. Nxc3 {[%clk 0:02:21.2]} 13... d6 {[%clk 0:02:30.6]}
14. Rc1 {[%clk 0:02:17]} 14... Be6 {[%clk 0:02:20.8]} 15. Bxe6 {[%clk
0:02:09.5]} 15... fxe6 {[%clk 0:02:21.7]} 16. Qb3 {[%clk 0:02:09.2]} 16... Qd7
{[%clk 0:02:20.3]} 17. Rfd1 {[%clk 0:02:03.7]} 17... Nc6 {[%clk 0:02:02.8]} 18.
Ne2 {[%clk 0:01:40.5]} 18... Kh7 {[%clk 0:01:53.4]} 19. Ne1 {[%clk 0:01:17.2]}
19... Rf7 {[%clk 0:01:46.7]} 20. f3 {[%clk 0:01:11.2]} 20... h5 {[%clk
0:01:44.8]} 21. Rc2 {[%clk 0:01:03.3]} 21... Bh6 {[%clk 0:01:40.8]} 22. d4
{[%clk 0:01:02.3]} 22... Raf8 {[%clk 0:01:34]} 23. d5 {[%clk 0:00:54.7]} 23...
exd5 {[%clk 0:01:34.1]} 24. Qxd5 {[%clk 0:00:52.9]} 24... Rf6 {[%clk 0:01:28.3]}
25. Rc3 {[%clk 0:00:47.3]} 25... g5 {[%clk 0:01:18.1]} 26. Ng3 {[%clk
0:00:42.6]} 26... g4 {[%clk 0:01:14.2]} 27. Nf5 {[%clk 0:00:36]} 27... Rg6
{[%clk 0:01:12.5]} 28. Kh1 {[%clk 0:00:29.2]} 28... Nd4 {[%clk 0:01:00.4]} 29.
Nxd4 {[%clk 0:00:25.6]} 29... exd4 {[%clk 0:01:01.3]} 30. Rc2 {[%clk 0:00:11.1]}
30... Be3 {[%clk 0:00:59.8]} 31. Qxh5+ {[%clk 0:00:09.1]} 31... Rh6 {[%clk
0:00:59.8]} 32. Qd5 {[%clk 0:00:08.2]} 32... Qe7 {[%clk 0:00:46.5]} 33. Nd3
{[%clk 0:00:06.9]} 33... Rxh2+ {[%clk 0:00:44.6]} 0-1

[Event "Early-Titled-Tuesday-Blitz-September-05-2023"]
[Site "Chess.com"]
[Date "2023.09.05"]
[Round "3"]
[White "brm72"]
[Black "ElenaPershina"]
[Result "1-0"]
[WhiteElo "2549"]
[BlackElo "2330"]
[TimeControl "180+1"]
[EndTime "8:27:04 PDT"]
[Termination "brm72 won on time"]

1. d4 {[%clk 0:02:58.8]} 1... d5 {[%clk 0:02:58.1]} 2. c4 {[%clk 0:02:59.2]}
2... c6 {[%clk 0:02:58.5]} 3. Nf3 {[%clk 0:02:58.8]} 3... Nf6 {[%clk 0:02:58.4]}
4. e3 {[%clk 0:02:59.4]} 4... Bf5 {[%clk 0:02:55.6]} 5. Nc3 {[%clk 0:02:58.9]}
5... e6 {[%clk 0:02:55.1]} 6. Nh4 {[%clk 0:02:59.4]} 6... Be4 {[%clk 0:02:53.6]}
7. Qb3 {[%clk 0:02:57.1]} 7... Qc7 {[%clk 0:02:52.2]} 8. Bd2 {[%clk 0:02:56.2]}
8... a5 {[%clk 0:02:46.4]} 9. Nxe4 {[%clk 0:02:51.4]} 9... Nxe4 {[%clk
0:02:44.1]} 10. Bd3 {[%clk 0:02:50.4]} 10... Nxd2 {[%clk 0:02:42.2]} 11. Kxd2
{[%clk 0:02:50.3]} 11... a4 {[%clk 0:02:34.6]} 12. Qc2 {[%clk 0:02:46.9]} 12...
a3 {[%clk 0:02:31.1]} 13. b3 {[%clk 0:02:46.7]} 13... Bb4+ {[%clk 0:02:29]} 14.
Ke2 {[%clk 0:02:46.4]} 14... Nd7 {[%clk 0:02:21.9]} 15. Rhd1 {[%clk 0:02:44.6]}
15... Qxh2 {[%clk 0:02:16.8]} 16. Nf3 {[%clk 0:02:40.6]} 16... Qc7 {[%clk
0:02:01.9]} 17. Rh1 {[%clk 0:02:38.4]} 17... h6 {[%clk 0:02:00.5]} 18. Rh5
{[%clk 0:02:37.3]} 18... Rc8 {[%clk 0:01:56.5]} 19. Rah1 {[%clk 0:02:30.5]}
19... Nf6 {[%clk 0:01:50.7]} 20. R5h4 {[%clk 0:02:30.3]} 20... c5 {[%clk
0:01:42.8]} 21. cxd5 {[%clk 0:02:26.4]} 21... Nxd5 {[%clk 0:01:37]} 22. Bb5+
{[%clk 0:02:24.3]} 22... Ke7 {[%clk 0:01:31.3]} 23. Bc4 {[%clk 0:02:08.6]} 23...
Nc3+ {[%clk 0:01:10.3]} 24. Kf1 {[%clk 0:02:07.3]} 24... b5 {[%clk 0:01:09.3]}
25. Bd3 {[%clk 0:02:02.3]} 25... c4 {[%clk 0:01:05.1]} 26. bxc4 {[%clk
0:02:03.2]} 26... bxc4 {[%clk 0:01:05.9]} 27. Bg6 {[%clk 0:01:54.5]} 27... fxg6
{[%clk 0:00:35]} 28. Qxg6 {[%clk 0:01:54]} 28... Nd5 {[%clk 0:00:34.2]} 29. Ne5
{[%clk 0:01:48.6]} 29... c3 {[%clk 0:00:22.5]} 30. g3 {[%clk 0:01:06.4]} 30...
c2 {[%clk 0:00:20.5]} 31. Kg2 {[%clk 0:01:06.8]} 31... Rhf8 {[%clk 0:00:13]} 32.
Rxh6 {[%clk 0:00:56.6]} 32... gxh6 {[%clk 0:00:10.8]} 33. Rxh6 {[%clk
0:00:57.5]} 33... c1=Q {[%clk 0:00:07]} 34. Qxe6+ {[%clk 0:00:49.2]} 34... Kd8
{[%clk 0:00:06.8]} 35. Qxd5+ {[%clk 0:00:44.2]} 1-0

[Event "Early-Titled-Tuesday-Blitz-September-05-2023"]
[Site "Chess.com"]
[Date "2023.09.05"]
[Round "3"]
[White "knightinshiningarmour16"]
[Black "MasterKroket"]
[Result "0-1"]
[WhiteElo "2111"]
[BlackElo "2411"]
[TimeControl "180+1"]
[EndTime "8:27:04 PDT"]
[Termination "MasterKroket won by checkmate"]

1. d4 {[%clk 0:02:59.2]} 1... Nf6 {[%clk 0:02:59.4]} 2. Nf3 {[%clk 0:02:56.7]}
2... g6 {[%clk 0:02:59.3]} 3. Bf4 {[%clk 0:02:55.3]} 3... Bg7 {[%clk 0:02:59.5]}
4. e3 {[%clk 0:02:54.6]} 4... c5 {[%clk 0:02:58.3]} 5. c3 {[%clk 0:02:52]} 5...
cxd4 {[%clk 0:02:58.2]} 6. exd4 {[%clk 0:02:50]} 6... d6 {[%clk 0:02:56.7]} 7.
h3 {[%clk 0:02:47.7]} 7... Nc6 {[%clk 0:02:56.3]} 8. Nbd2 {[%clk 0:02:46.4]}
8... O-O {[%clk 0:02:47.7]} 9. Be2 {[%clk 0:02:44.1]} 9... Re8 {[%clk
0:02:46.7]} 10. O-O {[%clk 0:02:43.8]} 10... e5 {[%clk 0:02:47]} 11. dxe5 {[%clk
0:02:39.8]} 11... dxe5 {[%clk 0:02:46.8]} 12. Bg3 {[%clk 0:02:36.7]} 12... e4
{[%clk 0:02:45.3]} 13. Nh2 {[%clk 0:02:33.7]} 13... e3 {[%clk 0:02:40.3]} 14.
fxe3 {[%clk 0:02:22.6]} 14... Rxe3 {[%clk 0:02:38.7]} 15. Bf2 {[%clk 0:01:52.9]}
15... Re8 {[%clk 0:02:38.4]} 16. Nhf3 {[%clk 0:01:50.9]} 16... Bf5 {[%clk
0:02:37.1]} 17. Qb3 {[%clk 0:01:43.6]} 17... Rxe2 {[%clk 0:02:36.3]} 18. Qxb7
{[%clk 0:01:41.3]} 18... Qc8 {[%clk 0:02:30.1]} 19. Qb5 {[%clk 0:01:37.9]} 19...
Re8 {[%clk 0:02:25]} 20. g4 {[%clk 0:01:28.2]} 20... Bd7 {[%clk 0:02:21.1]} 21.
Qd3 {[%clk 0:01:25.5]} 21... Be6 {[%clk 0:02:16.6]} 22. Nd4 {[%clk 0:01:19.5]}
22... Nxd4 {[%clk 0:02:16.3]} 23. Bxd4 {[%clk 0:01:20.3]} 23... Nd5 {[%clk
0:02:05.8]} 24. Bxg7 {[%clk 0:01:18.3]} 24... Kxg7 {[%clk 0:02:06.7]} 25. Qd4+
{[%clk 0:01:16.9]} 25... Kg8 {[%clk 0:02:04.4]} 26. Ne4 {[%clk 0:01:15.4]} 26...
Qc7 {[%clk 0:01:47.8]} 27. c4 {[%clk 0:01:10.5]} 27... Qb6 {[%clk 0:01:47.7]}
28. Qxb6 {[%clk 0:01:00.1]} 28... Nxb6 {[%clk 0:01:48.6]} 29. Nf6+ {[%clk
0:00:59.8]} 29... Kg7 {[%clk 0:01:49.3]} 30. Nxe8+ {[%clk 0:00:59.6]} 30... Rxe8
{[%clk 0:01:50.2]} 31. b3 {[%clk 0:00:59.7]} 31... h5 {[%clk 0:01:47.9]} 32.
gxh5 {[%clk 0:00:58.5]} 32... g5 {[%clk 0:01:48.4]} 33. Kg2 {[%clk 0:00:56.9]}
33... f5 {[%clk 0:01:48.6]} 34. Rfe1 {[%clk 0:00:56.5]} 34... Kf6 {[%clk
0:01:48.8]} 35. Rad1 {[%clk 0:00:55.8]} 35... Nc8 {[%clk 0:01:39.7]} 36. Kh2
{[%clk 0:00:55.5]} 36... f4 {[%clk 0:01:39.5]} 37. Re2 {[%clk 0:00:49.2]} 37...
Rh8 {[%clk 0:01:34]} 38. Rde1 {[%clk 0:00:48.6]} 38... Bf5 {[%clk 0:01:34.3]}
39. Re8 {[%clk 0:00:47.6]} 39... Rxh5 {[%clk 0:01:31.4]} 40. Rf8+ {[%clk
0:00:47.1]} 40... Kg6 {[%clk 0:01:31.6]} 41. Ree8 {[%clk 0:00:33.8]} 41... Rxh3+
{[%clk 0:01:31.6]} 42. Kg1 {[%clk 0:00:33.8]} 42... Rg3+ {[%clk 0:01:32.3]} 43.
Kf2 {[%clk 0:00:33.2]} 43... Nd6 {[%clk 0:01:33]} 44. Rg8+ {[%clk 0:00:32.4]}
44... Kh5 {[%clk 0:01:33.2]} 45. Rh8+ {[%clk 0:00:30.9]} 45... Kg4 {[%clk
0:01:33.3]} 46. Re5 {[%clk 0:00:27.5]} 46... Ne4+ {[%clk 0:01:33.2]} 47. Kf1
{[%clk 0:00:27.2]} 47... Nd2+ {[%clk 0:01:25.6]} 48. Ke2 {[%clk 0:00:24.3]}
48... Rg2+ {[%clk 0:01:25.7]} 49. Kd1 {[%clk 0:00:23.7]} 49... Nf1 {[%clk
0:01:20.6]} 50. Rf8 {[%clk 0:00:21.7]} 50... Ne3+ {[%clk 0:01:20.6]} 51. Ke1
{[%clk 0:00:20.6]} 51... Kf3 {[%clk 0:01:16.8]} 52. Rfxf5 {[%clk 0:00:19.1]}
52... Re2# {[%clk 0:01:17.1]} 0-1

[Event "Early-Titled-Tuesday-Blitz-September-05-2023"]
[Site "Chess.com"]
[Date "2023.09.05"]
[Round "3"]
[White "Abund"]
[Black "BilodeauA"]
[Result "1-0"]
[WhiteElo "2725"]
[BlackElo "2904"]
[TimeControl "180+1"]
[EndTime "8:27:05 PDT"]
[Termination "Abund won on time"]

1. e4 {[%clk 0:03:00.9]} 1... Nc6 {[%clk 0:02:59.1]} 2. Nf3 {[%clk 0:02:59.9]}
2... d6 {[%clk 0:02:59.2]} 3. d4 {[%clk 0:02:59.9]} 3... Nf6 {[%clk 0:02:59.7]}
4. Nc3 {[%clk 0:02:57.5]} 4... Bg4 {[%clk 0:02:59.5]} 5. Bb5 {[%clk 0:02:56.8]}
5... a6 {[%clk 0:02:59.3]} 6. Bxc6+ {[%clk 0:02:54.2]} 6... bxc6 {[%clk
0:03:00.2]} 7. h3 {[%clk 0:02:52]} 7... Bh5 {[%clk 0:02:58.5]} 8. Bg5 {[%clk
0:02:49.6]} 8... e6 {[%clk 0:02:54.6]} 9. Qd3 {[%clk 0:02:47.8]} 9... h6 {[%clk
0:02:48.5]} 10. Bh4 {[%clk 0:02:35.4]} 10... g5 {[%clk 0:02:45.7]} 11. Bg3
{[%clk 0:02:35.1]} 11... Bg7 {[%clk 0:02:45.5]} 12. Nd2 {[%clk 0:02:26]} 12...
Nd7 {[%clk 0:02:30.1]} 13. Nb3 {[%clk 0:02:20.5]} 13... a5 {[%clk 0:02:24]} 14.
Qc4 {[%clk 0:02:20.4]} 14... O-O {[%clk 0:02:17.2]} 15. Qxc6 {[%clk 0:02:12.4]}
15... f5 {[%clk 0:00:52.4]} 16. exf5 {[%clk 0:02:12.7]} 16... exf5 {[%clk
0:00:51]} 17. O-O {[%clk 0:02:06.9]} 17... f4 {[%clk 0:00:51.1]} 18. Bh2 {[%clk
0:02:07.5]} 18... Nb6 {[%clk 0:00:49.5]} 19. a4 {[%clk 0:01:57.2]} 19... Qd7
{[%clk 0:00:41.7]} 20. Qxd7 {[%clk 0:01:53.9]} 20... Nxd7 {[%clk 0:00:42.6]} 21.
Nd5 {[%clk 0:01:41]} 21... Ra7 {[%clk 0:00:38.9]} 22. Ne7+ {[%clk 0:01:39]}
22... Kh7 {[%clk 0:00:37]} 23. Nc6 {[%clk 0:01:39]} 23... Rb7 {[%clk 0:00:37.1]}
24. Ncxa5 {[%clk 0:01:37.4]} 24... Rb4 {[%clk 0:00:35.9]} 25. Rfe1 {[%clk
0:01:30.4]} 25... Bf6 {[%clk 0:00:29.1]} 26. Ra3 {[%clk 0:01:11.6]} 26... Ra8
{[%clk 0:00:25]} 27. c3 {[%clk 0:01:09.3]} 27... Rb6 {[%clk 0:00:21.1]} 28. Nc4
{[%clk 0:01:08.8]} 28... Rbb8 {[%clk 0:00:19.8]} 29. a5 {[%clk 0:01:02.3]} 29...
Bf7 {[%clk 0:00:18.7]} 30. Nbd2 {[%clk 0:00:56.3]} 30... d5 {[%clk 0:00:01.8]}
31. Ne5 {[%clk 0:00:56.5]} 31... Be8 {[%clk 0:00:01.4]} 32. b4 {[%clk
0:00:54.7]} 32... Nxe5 {[%clk 0:00:01.5]} 33. dxe5 {[%clk 0:00:55.1]} 33... Be7
{[%clk 0:00:02.4]} 34. Nb3 {[%clk 0:00:51]} 34... c5 {[%clk 0:00:02.5]} 35. Nxc5
{[%clk 0:00:47.2]} 35... Bxc5 {[%clk 0:00:02.7]} 36. bxc5 {[%clk 0:00:48.1]}
36... Kg6 {[%clk 0:00:03.1]} 37. g3 {[%clk 0:00:48.3]} 1-0

[Event "Early-Titled-Tuesday-Blitz-September-05-2023"]
[Site "Chess.com"]
[Date "2023.09.05"]
[Round "3"]
[White "Boundless_Strike"]
[Black "KNVB"]
[Result "1-0"]
[WhiteElo "2523"]
[BlackElo "2781"]
[TimeControl "180+1"]
[EndTime "8:27:09 PDT"]
[Termination "Boundless_Strike won by checkmate"]

1. d3 {[%clk 0:02:52.8]} 1... d5 {[%clk 0:02:50.5]} 2. e4 {[%clk 0:02:52.1]}
2... e5 {[%clk 0:02:24.2]} 3. Nd2 {[%clk 0:02:35.3]} 3... Nf6 {[%clk 0:02:22.2]}
4. Ngf3 {[%clk 0:02:35]} 4... Bd6 {[%clk 0:02:16.1]} 5. c3 {[%clk 0:02:32.2]}
5... c6 {[%clk 0:02:16.1]} 6. h3 {[%clk 0:02:32.2]} 6... O-O {[%clk 0:02:16.3]}
7. Be2 {[%clk 0:02:32.8]} 7... Re8 {[%clk 0:02:16.7]} 8. Qc2 {[%clk 0:02:33.2]}
8... a5 {[%clk 0:02:16.2]} 9. Nf1 {[%clk 0:02:31.6]} 9... a4 {[%clk 0:02:03.3]}
10. g4 {[%clk 0:02:25.8]} 10... dxe4 {[%clk 0:01:14]} 11. dxe4 {[%clk
0:02:25.4]} 11... Nbd7 {[%clk 0:01:14.5]} 12. Ng3 {[%clk 0:02:19.1]} 12... Nc5
{[%clk 0:01:14.8]} 13. g5 {[%clk 0:02:06.7]} 13... Nfd7 {[%clk 0:01:15.1]} 14.
Nf5 {[%clk 0:02:04.7]} 14... Bf8 {[%clk 0:01:15.3]} 15. Be3 {[%clk 0:02:00.3]}
15... Ne6 {[%clk 0:01:13.7]} 16. O-O-O {[%clk 0:01:54.7]} 16... Qa5 {[%clk
0:01:05.5]} 17. h4 {[%clk 0:01:40.2]} 17... Nf4 {[%clk 0:00:49.5]} 18. Bf1
{[%clk 0:01:12.8]} 18... Nc5 {[%clk 0:00:41.3]} 19. h5 {[%clk 0:00:50.4]} 19...
Be6 {[%clk 0:00:40.9]} 20. Kb1 {[%clk 0:00:50.9]} 20... Nb3 {[%clk 0:00:16.8]}
21. g6 {[%clk 0:00:42.8]} 21... fxg6 {[%clk 0:00:15.7]} 22. hxg6 {[%clk
0:00:42.9]} 22... hxg6 {[%clk 0:00:16.6]} 23. Bxf4 {[%clk 0:00:34.5]} 23... exf4
{[%clk 0:00:11.4]} 24. N5d4 {[%clk 0:00:33.7]} 24... Bf7 {[%clk 0:00:05.6]} 25.
Ng5 {[%clk 0:00:26.4]} 25... Qxg5 {[%clk 0:00:04.4]} 26. f3 {[%clk 0:00:25]}
26... Nxd4 {[%clk 0:00:02.8]} 27. Rxd4 {[%clk 0:00:24.8]} 27... Bc5 {[%clk
0:00:02.5]} 28. Qh2 {[%clk 0:00:24.6]} 28... Kf8 {[%clk 0:00:02.6]} 29. Rd7
{[%clk 0:00:22.5]} 29... Rad8 {[%clk 0:00:01.7]} 30. Qh8+ {[%clk 0:00:21.9]}
30... Bg8 {[%clk 0:00:02.3]} 31. Qxg7# {[%clk 0:00:22.3]} 1-0

[Event "Early-Titled-Tuesday-Blitz-September-05-2023"]
[Site "Chess.com"]
[Date "2023.09.05"]
[Round "3"]
[White "aakankshachess"]
[Black "campochess"]
[Result "1-0"]
[WhiteElo "2430"]
[BlackElo "2197"]
[TimeControl "180+1"]
[EndTime "8:27:09 PDT"]
[Termination "aakankshachess won by resignation"]

1. e4 {[%clk 0:02:56.2]} 1... c5 {[%clk 0:02:56.5]} 2. Nf3 {[%clk 0:02:54.8]}
2... Nc6 {[%clk 0:02:56.3]} 3. d4 {[%clk 0:02:51.8]} 3... cxd4 {[%clk
0:02:55.9]} 4. Nxd4 {[%clk 0:02:51.4]} 4... e5 {[%clk 0:02:55.9]} 5. Nb5 {[%clk
0:02:50.9]} 5... a6 {[%clk 0:02:53.4]} 6. Nd6+ {[%clk 0:02:49.1]} 6... Bxd6
{[%clk 0:02:53.2]} 7. Qxd6 {[%clk 0:02:50]} 7... Qe7 {[%clk 0:02:53.4]} 8. Qd1
{[%clk 0:02:41.8]} 8... Nf6 {[%clk 0:02:51.6]} 9. Nc3 {[%clk 0:02:39.2]} 9... h6
{[%clk 0:02:50.3]} 10. Be2 {[%clk 0:02:20.7]} 10... d6 {[%clk 0:02:49.4]} 11.
Be3 {[%clk 0:02:16.2]} 11... Be6 {[%clk 0:02:48.2]} 12. O-O {[%clk 0:02:12.2]}
12... Rd8 {[%clk 0:02:48]} 13. Bb6 {[%clk 0:02:09.2]} 13... Rd7 {[%clk
0:02:47.3]} 14. f4 {[%clk 0:01:41.4]} 14... exf4 {[%clk 0:02:42.4]} 15. Rxf4
{[%clk 0:01:39]} 15... O-O {[%clk 0:02:35.5]} 16. Bd3 {[%clk 0:01:33.5]} 16...
Rc8 {[%clk 0:02:33]} 17. Qe1 {[%clk 0:01:22.9]} 17... Ne5 {[%clk 0:02:32.8]} 18.
Bd4 {[%clk 0:01:15.3]} 18... Bc4 {[%clk 0:02:21.7]} 19. Qe2 {[%clk 0:01:08.4]}
19... b5 {[%clk 0:02:20.4]} 20. a3 {[%clk 0:00:58.7]} 20... Qe6 {[%clk
0:02:18.6]} 21. Raf1 {[%clk 0:00:58]} 21... Bxd3 {[%clk 0:01:57.9]} 22. cxd3
{[%clk 0:00:57.6]} 22... Nh7 {[%clk 0:01:39.7]} 23. Nd5 {[%clk 0:00:55.9]} 23...
f6 {[%clk 0:01:23.5]} 24. Nb6 {[%clk 0:00:50.8]} 24... Rcc7 {[%clk 0:01:21.6]}
25. Nxd7 {[%clk 0:00:50.2]} 25... Qxd7 {[%clk 0:01:20.6]} 26. Rd1 {[%clk
0:00:43.5]} 26... Ng5 {[%clk 0:01:18.9]} 27. Rff1 {[%clk 0:00:36.2]} 27... Ne6
{[%clk 0:01:18.4]} 28. Be3 {[%clk 0:00:35.8]} 28... Nf7 {[%clk 0:01:13.2]} 29.
d4 {[%clk 0:00:35.1]} 29... Rc4 {[%clk 0:01:06.9]} 30. Qg4 {[%clk 0:00:24.5]}
30... d5 {[%clk 0:01:05]} 31. Rxf6 {[%clk 0:00:21.2]} 31... Nc5 {[%clk
0:00:47.9]} 32. Qxd7 {[%clk 0:00:18.3]} 32... Nxd7 {[%clk 0:00:47.8]} 33. Rxa6
{[%clk 0:00:18.9]} 33... dxe4 {[%clk 0:00:47.6]} 34. Rf1 {[%clk 0:00:18.7]}
34... Nd6 {[%clk 0:00:45.3]} 35. Rxd6 {[%clk 0:00:18.4]} 35... Nb6 {[%clk
0:00:43.2]} 36. Rd8+ {[%clk 0:00:18.5]} 36... Kh7 {[%clk 0:00:42.1]} 37. h4
{[%clk 0:00:19.4]} 37... Rc6 {[%clk 0:00:37.3]} 38. h5 {[%clk 0:00:19.5]} 38...
Nd5 {[%clk 0:00:37.2]} 39. Rxd5 {[%clk 0:00:19.1]} 1-0

[Event "Early-Titled-Tuesday-Blitz-September-05-2023"]
[Site "Chess.com"]
[Date "2023.09.05"]
[Round "3"]
[White "BigPiano"]
[Black "Amirreza_p"]
[Result "0-1"]
[WhiteElo "2421"]
[BlackElo "2613"]
[TimeControl "180+1"]
[EndTime "8:27:10 PDT"]
[Termination "Amirreza_p won on time"]

1. d4 {[%clk 0:02:59.2]} 1... Nf6 {[%clk 0:02:57.6]} 2. c4 {[%clk 0:02:59.1]}
2... e6 {[%clk 0:02:57.1]} 3. g3 {[%clk 0:02:59.1]} 3... d5 {[%clk 0:02:54.4]}
4. Bg2 {[%clk 0:02:59.4]} 4... Bb4+ {[%clk 0:02:44.8]} 5. Nd2 {[%clk 0:02:58.2]}
5... O-O {[%clk 0:02:40.8]} 6. Nf3 {[%clk 0:02:58.2]} 6... dxc4 {[%clk
0:02:39.7]} 7. Qc2 {[%clk 0:02:57.9]} 7... a5 {[%clk 0:02:14.5]} 8. O-O {[%clk
0:02:55.8]} 8... b5 {[%clk 0:02:00.5]} 9. a4 {[%clk 0:02:55.1]} 9... c6 {[%clk
0:01:56.6]} 10. Ne5 {[%clk 0:02:34.5]} 10... Ra6 {[%clk 0:01:48.8]} 11. b3
{[%clk 0:02:09.6]} 11... Qxd4 {[%clk 0:01:42.2]} 12. Nxc6 {[%clk 0:01:09.7]}
12... Rxc6 {[%clk 0:01:19.5]} 13. Bxc6 {[%clk 0:00:59]} 13... Nxc6 {[%clk
0:01:13.8]} 14. axb5 {[%clk 0:00:56.6]} 14... Qxa1 {[%clk 0:00:47.1]} 15. bxc6
{[%clk 0:00:36.5]} 15... cxb3 {[%clk 0:00:44.6]} 16. Nxb3 {[%clk 0:00:35.6]}
16... Qc3 {[%clk 0:00:44]} 17. Qa2 {[%clk 0:00:13.9]} 17... Qxc6 {[%clk
0:00:41.5]} 18. Bg5 {[%clk 0:00:10]} 18... Ne4 {[%clk 0:00:39.1]} 19. Bf4 {[%clk
0:00:08.5]} 19... Nc3 {[%clk 0:00:36.6]} 20. Qc2 {[%clk 0:00:08.8]} 20... Bb7
{[%clk 0:00:35.6]} 21. f3 {[%clk 0:00:08.3]} 21... Ba6 {[%clk 0:00:36.2]} 22.
Rf2 {[%clk 0:00:06.3]} 22... Qb6 {[%clk 0:00:33]} 23. Kg2 {[%clk 0:00:02.8]}
23... a4 {[%clk 0:00:31.8]} 24. Nc1 {[%clk 0:00:02.1]} 24... a3 {[%clk
0:00:31.8]} 25. Bd2 {[%clk 0:00:01.4]} 25... Rc8 {[%clk 0:00:28.3]} 26. Nd3
{[%clk 0:00:01.4]} 26... a2 {[%clk 0:00:26]} 27. Qb2 {[%clk 0:00:01.9]} 27...
Bxd3 {[%clk 0:00:24.7]} 28. exd3 {[%clk 0:00:02]} 28... Nd1 {[%clk 0:00:23.3]}
29. Qxa2 {[%clk 0:00:02]} 29... Qxf2+ {[%clk 0:00:21.3]} 0-1